fUST/lending_fUST_20250422
["ID","MTS","AMOUNT","RATE_DAILY","PERIOD"]
[358639303,1745327445039,-500.0,0.00022465,2]
[358639304,1745327445048,-567.78,0.00022465,2]
[358639305,1745327445058,-500.0,0.00022465,2]
[358639306,1745327445069,-500.0,0.00022465,2]
[358639307,1745327445079,-500.0,0.00022465,2]
[358639308,1745327445092,-500.0,0.00022465,2]
[358639309,1745327445102,-526.16,0.00022465,2]
[358639310,1745327445112,-500.0,0.00022465,2]
[358639311,1745327445122,-500.0,0.00022465,2]
[358639312,1745327445132,-580.49,0.00022465,2]
[358639313,1745327445142,-500.0,0.00022465,2]
[358639314,1745327445152,-500.0,0.00022465,2]
[358639315,1745327445162,-542.71,0.00022465,2]
[358639316,1745327445172,-500.0,0.00022465,2]
[358639317,1745327445183,-1450.8,0.00022465,2]
[358639318,1745327445193,-500.0,0.00022465,2]
[358639319,1745327445204,-2968.47,0.00022465,2]
[358639320,1745327445215,-270.73515949,0.00022465,2]
[358639337,1745327445993,-229.26484051,0.00022465,2]
[358639338,1745327446003,-500.0,0.00022465,2]
[358639339,1745327446015,-500.0,0.00022465,2]
[358639340,1745327446025,-500.0,0.00022465,2]
[358639341,1745327446038,-500.0,0.00022465,2]
[358639342,1745327446048,-1209.73515954,0.00022465,2]
[358639343,1745327446061,-8787.79484046,0.00022465,2]
[358639344,1745327446071,-500.0,0.00022465,2]
[358639345,1745327446082,-500.0,0.00022465,2]
[358639346,1745327446093,-500.0,0.00022465,2]
[358639347,1745327446103,-500.0,0.00022465,2]
[358639348,1745327446114,-500.0,0.00022465,2]
[358639349,1745327446124,-500.0,0.00022465,2]
[358639350,1745327446135,-500.0,0.00022465,2]
[358639351,1745327446144,-626.93,0.00022465,2]
[358639352,1745327446156,-346.95618113,0.00022465,2]
[358639354,1745327446166,-500.0,0.00022465,2]
[358639356,1745327446176,-650.86,0.00022465,2]
[358639357,1745327446186,-500.0,0.00022465,2]
[358639358,1745327446196,-2754.73659113,0.00022465,2]
[358639359,1745327446207,-96.91340887,0.00022465,2]
[358639360,1745327446217,-500.0,0.00022465,2]
[358639361,1745327446227,-571.28,0.00022465,2]
[358639362,1745327446237,-500.0,0.00022465,2]
[358639363,1745327446247,-500.0,0.00022465,2]
[358639364,1745327446257,-563.53,0.00022465,2]
[358639365,1745327446267,-500.0,0.00022465,2]
[358639366,1745327446279,-500.0,0.00022465,2]
[358639367,1745327446288,-500.0,0.00022465,2]
[358639368,1745327446299,-500.0,0.00022465,2]
[358639369,1745327446309,-500.0,0.00022465,2]
[358639370,1745327446318,-500.0,0.00022465,2]
[358639371,1745327446329,-500.0,0.00022465,2]
[358639372,1745327446339,-500.0,0.00022465,2]
[358639373,1745327446349,-655.41,0.00022465,2]
[358639374,1745327446359,-500.0,0.00022465,2]
[358639375,1745327446370,-500.0,0.00022465,2]
[358639376,1745327446380,-500.0,0.00022465,2]
[358639377,1745327446390,-1681.15,0.00022465,2]
[358639378,1745327446400,-500.0,0.00022465,2]
[358639379,1745327446410,-500.0,0.00022465,2]
[358639380,1745327446420,-500.0,0.00022465,2]
[358639381,1745327446430,-573.59,0.00022465,2]
[358639383,1745327446439,-500.0,0.00022465,2]
[358639384,1745327446449,-2663.29,0.00022465,2]
[358639385,1745327446459,-500.0,0.00022465,2]
[358639386,1745327446470,-380.31634041,0.00022465,2]
[358639387,1745327446480,-500.0,0.00022465,2]
[358639388,1745327446492,-500.0,0.00022465,2]
[358639389,1745327446502,-122.62025072,0.00022465,2]
[358639396,1745327496725,200.0,0.00045432,30]
[358639397,1745327497051,200.0,0.00045432,30]
[358639398,1745327497475,200.0,0.00045432,30]
[358639399,1745327497979,200.0,0.00045432,30]
[358639400,1745327498425,200.0,0.00045432,30]
[358639401,1745327498858,250.9,0.00045432,30]
[358639446,1745327657285,2321.70682819,0.00045393,120]
[358639448,1745327706701,200.0,0.00045393,120]
[358639449,1745327707363,200.0,0.00045393,120]
[358639477,1745327874123,58976.777535,0.00045393,120]
[358639483,1745327973726,512240.10499851,0.00045435,30]
[358639488,1745328036811,267.79,0.00045435,60]
[358639554,1745328381026,200.0,0.00045435,30]
[358639555,1745328381543,200.0,0.00045435,30]
[358639556,1745328381855,200.0,0.00045435,30]
[358639557,1745328382543,200.0,0.00045435,30]
[358639558,1745328382925,200.0,0.00045435,30]
[358639559,1745328383252,250.9,0.00045435,30]
[358639585,1745328480367,1181.38766765,0.00016,2]
[358639604,1745328526616,438.82868473,0.000175,4]
[358639608,1745328530816,309.42281456,0.00045435,120]
[358639614,1745328544993,499999.00000712,0.00045435,30]
[358639693,1745328638236,-157.94596,0.00020695,2]
[358639694,1745328638247,-347.37043056,0.00020742,2]
[358639695,1745328638258,-250.52425722,0.00021448,2]
[358639696,1745328638271,-300.0,0.00021515,2]
[358639697,1745328638282,-600.0,0.00021515,2]
[358639698,1745328638292,-1834.7049908,0.00021516,2]
[358639699,1745328638302,-409.47817596,0.00021516,2]
[358639700,1745328638314,-500.0,0.00021516,2]
[358639701,1745328638328,-80.07618546,0.00021516,2]
[358639702,1745328638340,-419.92381454,0.00021516,2]
[358639703,1745328638350,-500.0,0.00021516,2]
[358639704,1745328638359,-500.0,0.00021516,2]
[358639705,1745328638368,-500.0,0.00021516,2]
[358639706,1745328638376,-264.67244776,0.00021516,2]
[358639707,1745328638386,-500.0,0.00021516,2]
[358639708,1745328638395,-447.43955196,0.00021516,2]
[358639709,1745328638405,-52.56044804,0.00021516,2]
[358639710,1745328638414,-500.0,0.00021516,2]
[358639711,1745328638424,-500.0,0.00021516,2]
[358639712,1745328638433,-500.0,0.00021516,2]
[358639713,1745328638446,-200.54296832,0.00021516,2]
[358639714,1745328638457,-500.0,0.00021516,2]
[358639715,1745328638470,-33.19331659,0.00021516,2]
[358639716,1745328638483,-466.80668341,0.00021516,2]
[358639717,1745328638496,-500.0,0.00021516,2]
[358639718,1745328638509,-231.91311833,0.00021516,2]
[358639719,1745328638519,-162.33918283,0.00021516,2]
[358639720,1745328638531,-487.98,0.00021516,2]
[358639721,1745328638545,-2720.52820673,0.00021517,2]
[358639722,1745328638566,-367279.47179327,0.00021517,2]
[358639723,1745328638576,-596.10118736,0.0002168,2]
[358639724,1745328638586,-500.0,0.0002178,2]
[358639725,1745328638596,-596.10118734,0.00021851,2]
[358639726,1745328638607,-500.0,0.00021917,2]
[358639727,1745328638618,-500.0,0.00021917,2]
[358639728,1745328638629,-500.0,0.00021917,2]
[358639729,1745328638639,-500.0,0.00021917,2]
[358639730,1745328638649,-447.21144584,0.00021917,2]
[358639731,1745328638659,-500.0,0.00021917,2]
[358639732,1745328638668,-500.0,0.00021917,2]
[358639733,1745328638678,-500.0,0.00021917,2]
[358639734,1745328638688,-500.0,0.00021917,2]
[358639735,1745328638698,-500.0,0.00021917,2]
[358639736,1745328638708,-500.0,0.00021917,2]
[358639737,1745328638717,-500.0,0.00021917,2]
[358639738,1745328638728,-500.0,0.00021917,2]
[358639739,1745328638738,-500.0,0.00021917,2]
[358639740,1745328638747,-500.0,0.00021917,2]
[358639741,1745328638757,-511.80561492,0.00021917,2]
[358639742,1745328638767,-500.0,0.00021917,2]
[358639743,1745328638777,-500.0,0.00021917,2]
[358639744,1745328638787,-500.0,0.00021917,2]
[358639745,1745328638796,-500.0,0.00021917,2]
[358639746,1745328638806,-509.31683203,0.00021917,2]
[358639747,1745328638816,-502.09964319,0.00021917,2]
[358639748,1745328638827,-500.0,0.00021917,2]
[358639749,1745328638836,-513.11844049,0.00021917,2]
[358639750,1745328638846,-500.0,0.00021917,2]
[358639751,1745328638859,-682.39,0.00021917,2]
[358639752,1745328638868,-500.0,0.00021917,2]
[358639753,1745328638878,-500.0,0.00021917,2]
[358639754,1745328638887,-500.0,0.00021917,2]
[358639755,1745328638897,-560.52,0.00021917,2]
[358639756,1745328638907,-500.0,0.00021917,2]
[358639757,1745328638917,-500.0,0.00021917,2]
[358639758,1745328638928,-500.0,0.00021917,2]
[358639759,1745328638937,-500.0,0.00021917,2]
[358639760,1745328638948,-510.71071946,0.00021917,2]
[358639761,1745328638958,-500.0,0.00021917,2]
[358639762,1745328638967,-500.98956056,0.00021917,2]
[358639763,1745328638978,-500.0,0.00021917,2]
[358639764,1745328638988,-500.0,0.00021917,2]
[358639765,1745328638998,-500.0,0.00021917,2]
[358639766,1745328639008,-500.0,0.00021917,2]
[358639767,1745328639018,-502.78677908,0.00021917,2]
[358639768,1745328639028,-500.0,0.00021917,2]
[358639769,1745328639037,-500.0,0.00021917,2]
[358639770,1745328639048,-500.0,0.00021917,2]
[358639771,1745328639057,-502.16583751,0.00021917,2]
[358639772,1745328639068,-500.0,0.00021917,2]
[358639773,1745328639078,-500.0,0.00021917,2]
[358639774,1745328639087,-500.0,0.00021917,2]
[358639775,1745328639097,-500.0,0.00021917,2]
[358639776,1745328639107,-500.0,0.00021917,2]
[358639777,1745328639116,-500.0,0.00021917,2]
[358639778,1745328639127,-500.0,0.00021917,2]
[358639779,1745328639136,-500.0,0.00021917,2]
[358639780,1745328639145,-500.0,0.00021917,2]
[358639781,1745328639155,-500.0,0.00021917,2]
[358639782,1745328639165,-500.0,0.00021917,2]
[358639783,1745328639174,-500.0,0.00021917,2]
[358639784,1745328639184,-500.0,0.00021917,2]
[358639785,1745328639194,-500.0,0.00021917,2]
[358639786,1745328639203,-500.0,0.00021917,2]
[358639787,1745328639214,-500.0,0.00021917,2]
[358639788,1745328639224,-500.0,0.00021917,2]
[358639789,1745328639233,-588.85,0.00021917,2]
[358639790,1745328639244,-500.0,0.00021917,2]
[358639791,1745328639253,-500.0,0.00021917,2]
[358639792,1745328639263,-500.0,0.00021917,2]
[358639793,1745328639273,-500.0,0.00021917,2]
[358639794,1745328639284,-500.0,0.00021917,2]
[358639795,1745328639293,-500.0,0.00021917,2]
[358639796,1745328639303,-500.0,0.00021917,2]
[358639797,1745328639314,-500.32266971,0.00021917,2]
[358639798,1745328639327,-500.0,0.00021917,2]
[358639799,1745328639338,-500.0,0.00021917,2]
[358639800,1745328639348,-500.0,0.00021917,2]
[358639801,1745328639359,-500.0,0.00021917,2]
[358639802,1745328639368,-500.0,0.00021917,2]
[358639803,1745328639378,-500.0,0.00021917,2]
[358639804,1745328639388,-560.1365621,0.00021917,2]
[358639805,1745328639398,-500.0,0.00021917,2]
[358639806,1745328639409,-501.41201005,0.00021917,2]
[358639807,1745328639419,-500.82449963,0.00021917,2]
[358639808,1745328639429,-500.0,0.00021917,2]
[358639809,1745328639439,-500.0,0.00021917,2]
[358639810,1745328639454,-500.0,0.00021917,2]
[358639811,1745328639464,-500.0,0.00021917,2]
[358639812,1745328639474,-500.0,0.00021917,2]
[358639813,1745328639484,-500.0,0.00021917,2]
[358639814,1745328639494,-500.0,0.00021917,2]
[358639816,1745328639504,-500.0,0.00021917,2]
[358639818,1745328639514,-500.0,0.00021917,2]
[358639819,1745328639525,-500.0,0.00021917,2]
[358639820,1745328639535,-500.0,0.00021917,2]
[358639821,1745328639545,-500.0,0.00021917,2]
[358639822,1745328639556,-500.0,0.00021917,2]
[358639823,1745328639565,-500.0,0.00021917,2]
[358639824,1745328639582,-342.18701394,0.00021917,2]
[358639825,1745328639592,-518.89403622,0.00021917,2]
[358639826,1745328639603,-500.0,0.00021917,2]
[358639827,1745328639612,-500.0,0.00021917,2]
[358639828,1745328639623,-510.91112369,0.00021917,2]
[358639829,1745328639633,-501.2563291,0.00021917,2]
[358639830,1745328639643,-500.0,0.00021917,2]
[358639831,1745328639653,-502.31373735,0.00021917,2]
[358639832,1745328639663,-500.0,0.00021917,2]
[358639833,1745328639673,-647.52603563,0.00021917,2]
[358639834,1745328639683,-508.78431858,0.00021917,2]
[358639835,1745328639694,-500.0,0.00021917,2]
[358639836,1745328639704,-556.00305879,0.00021917,2]
[358639837,1745328639714,-500.0,0.00021917,2]
[358639838,1745328639724,-500.0,0.00021917,2]
[358639839,1745328639734,-501.77784407,0.00021917,2]
[358639840,1745328639744,-501.63691401,0.00021917,2]
[358639841,1745328639754,-505.02602121,0.00021917,2]
[358639843,1745328639764,-500.0,0.00021917,2]
[358639844,1745328639775,-502.64797256,0.00021917,2]
[358639845,1745328639795,-505.91198158,0.00021917,2]
[358639846,1745328639808,-515.25,0.00021917,2]
[358639847,1745328639821,-500.0,0.00021917,2]
[358639848,1745328639832,-652.12,0.00021917,2]
[358639849,1745328639842,-500.0,0.00021917,2]
[358639850,1745328639852,-500.0,0.00021917,2]
[358639851,1745328639863,-500.0,0.00021917,2]
[358639852,1745328639873,-500.0,0.00021917,2]
[358639853,1745328639884,-500.0,0.00021917,2]
[358639854,1745328639894,-506.27016928,0.00021917,2]
[358639855,1745328639905,-599.47,0.00021917,2]
[358639856,1745328639915,-500.0,0.00021917,2]
[358639857,1745328639925,-500.0,0.00021917,2]
[358639858,1745328639935,-500.0,0.00021917,2]
[358639859,1745328639946,-500.0,0.00021917,2]
[358639860,1745328639956,-500.0,0.00021917,2]
[358639861,1745328639966,-500.0,0.00021917,2]
[358639862,1745328639976,-500.0,0.00021917,2]
[358639863,1745328639986,-500.0,0.00021917,2]
[358639864,1745328639996,-500.0,0.00021917,2]
[358639865,1745328640007,-990.94,0.00021917,2]
[358639866,1745328640018,-500.0,0.00021917,2]
[358639867,1745328640028,-500.0,0.00021917,2]
[358639868,1745328640038,-500.0,0.00021917,2]
[358639869,1745328640048,-500.0,0.00021917,2]
[358639870,1745328640060,-500.0,0.00021917,2]
[358639871,1745328640072,-544.12,0.00021917,2]
[358639872,1745328640083,-500.0,0.00021917,2]
[358639873,1745328640092,-500.0,0.00021917,2]
[358639874,1745328640102,-500.0,0.00021917,2]
[358639875,1745328640112,-510.65501489,0.00021917,2]
[358639876,1745328640123,-500.0,0.00021917,2]
[358639877,1745328640137,-500.0,0.00021917,2]
[358639878,1745328640153,-500.0,0.00021917,2]
[358639879,1745328640167,-500.0,0.00021917,2]
[358639880,1745328640178,-500.0,0.00021917,2]
[358639881,1745328640188,-236.84519714,0.00021917,2]
[358639882,1745328640199,-519.34569193,0.00021917,2]
[358639883,1745328640209,-504.24,0.00021917,2]
[358639884,1745328640220,-500.0,0.00021917,2]
[358639885,1745328640230,-402.96631046,0.00021917,2]
[358639886,1745328640240,-500.0,0.00021917,2]
[358639887,1745328640250,-500.0,0.00021917,2]
[358639888,1745328640260,-1390.35,0.00021917,2]
[358639889,1745328640271,-500.0,0.00021917,2]
[358639890,1745328640280,-639.85714047,0.00021917,2]
[358639891,1745328640290,-279.98879875,0.00021917,2]
[358639892,1745328640300,-500.0,0.00021917,2]
[358639893,1745328640310,-500.0,0.00021917,2]
[358639894,1745328640321,-520.1,0.00021917,2]
[358639896,1745328640332,-387.68245617,0.00021917,2]
[358639898,1745328640342,-500.0,0.00021917,2]
[358639899,1745328640352,-500.0,0.00021917,2]
[358639900,1745328640362,-500.0,0.00021917,2]
[358639902,1745328640372,-500.0,0.00021917,2]
[358639903,1745328640382,-500.0,0.00021917,2]
[358639904,1745328640393,-221.05642372,0.00021917,2]
[358639906,1745328640404,-500.0,0.00021917,2]
[358639907,1745328640414,-500.0,0.00021917,2]
[358639908,1745328640424,-500.0,0.00021917,2]
[358639909,1745328640434,-500.0,0.00021917,2]
[358639911,1745328640447,-500.24954441,0.00021917,2]
[358639912,1745328640457,-500.0,0.00021917,2]
[358639913,1745328640472,-3381.71,0.00021917,2]
[358639914,1745328640483,-500.0,0.00021917,2]
[358639915,1745328640495,-500.0,0.00021917,2]
[358639916,1745328640505,-500.0,0.00021917,2]
[358639917,1745328640515,-9580.96,0.00021917,2]
[358639918,1745328640525,-501.09037754,0.00021917,2]
[358639919,1745328640536,-500.0,0.00021917,2]
[358639920,1745328640546,-500.0,0.00021917,2]
[358639921,1745328640556,-500.0,0.00021917,2]
[358639922,1745328640566,-514.37271961,0.00021917,2]
[358639923,1745328640579,-2934.49,0.00021917,2]
[358639924,1745328640589,-500.0,0.00021917,2]
[358639925,1745328640599,-500.0,0.00021917,2]
[358639926,1745328640609,-502.8591018,0.00021917,2]
[358639927,1745328640619,-500.0,0.00021917,2]
[358639928,1745328640630,-500.0,0.00021917,2]
[358639929,1745328640640,-500.0,0.00021917,2]
[358639930,1745328640650,-500.0,0.00021917,2]
[358639931,1745328640660,-505.33011739,0.00021917,2]
[358639932,1745328640670,-504.59063616,0.00021917,2]
[358639933,1745328640680,-500.0,0.00021917,2]
[358639934,1745328640690,-500.0,0.00021917,2]
[358639935,1745328640700,-500.0,0.00021917,2]
[358639936,1745328640710,-436.69385746,0.00021917,2]
[358639937,1745328640719,-500.0,0.00021917,2]
[358639938,1745328640729,-600.81,0.00021917,2]
[358639939,1745328640739,-500.0,0.00021917,2]
[358639940,1745328640750,-500.0,0.00021917,2]
[358639941,1745328640760,-500.0,0.00021917,2]
[358639942,1745328640770,-531.60881479,0.00021917,2]
[358639943,1745328640780,-500.0,0.00021917,2]
[358639944,1745328640791,-500.0,0.00021917,2]
[358639945,1745328640801,-628.1,0.00021917,2]
[358639946,1745328640811,-500.0,0.00021917,2]
[358639947,1745328640821,-500.0,0.00021917,2]
[358639948,1745328640831,-500.0,0.00021917,2]
[358639949,1745328640842,-623.74,0.00021917,2]
[358639950,1745328640852,-500.0,0.00021917,2]
[358639951,1745328640862,-500.0,0.00021917,2]
[358639952,1745328640872,-500.0,0.00021917,2]
[358639953,1745328640883,-500.0,0.00021917,2]
[358639954,1745328640893,-500.0,0.00021917,2]
[358639955,1745328640903,-540.05,0.00021917,2]
[358639956,1745328640913,-287.67397708,0.00021917,2]
[358639957,1745328640922,-500.0,0.00021917,2]
[358639958,1745328640932,-547.48,0.00021917,2]
[358639959,1745328640942,-500.0,0.00021917,2]
[358639960,1745328640951,-500.0,0.00021917,2]
[358639961,1745328640961,-500.0,0.00021917,2]
[358639962,1745328640971,-500.0,0.00021917,2]
[358639963,1745328640982,-500.0,0.00021917,2]
[358639964,1745328640992,-520.10718635,0.00021917,2]
[358639965,1745328641002,-500.0,0.00021917,2]
[358639966,1745328641012,-500.0,0.00021917,2]
[358639967,1745328641022,-500.0,0.00021917,2]
[358639968,1745328641032,-500.0,0.00021917,2]
[358639969,1745328641042,-500.0,0.00021917,2]
[358639970,1745328641054,-500.0,0.00021917,2]
[358639971,1745328641064,-500.0,0.00021917,2]
[358639972,1745328641076,-277.99723843,0.00021917,2]
[358639973,1745328641086,-500.0,0.00021917,2]
[358639974,1745328641097,-500.0,0.00021917,2]
[358639975,1745328641108,-2441.35,0.00021917,2]
[358639977,1745328641118,-500.0,0.00021917,2]
[358639978,1745328641128,-500.0,0.00021917,2]
[358639979,1745328641139,-500.0,0.00021917,2]
[358639980,1745328641149,-500.0,0.00021917,2]
[358639981,1745328641159,-501.69938003,0.00021917,2]
[358639982,1745328641169,-500.0,0.00021917,2]
[358639983,1745328641180,-500.0,0.00021917,2]
[358639984,1745328641189,-500.0,0.00021917,2]
[358639985,1745328641199,-500.0,0.00021917,2]
[358639986,1745328641209,-500.0,0.00021917,2]
[358639987,1745328641219,-525.79,0.00021917,2]
[358639988,1745328641229,-500.0,0.00021917,2]
[358639989,1745328641239,-500.0,0.00021917,2]
[358639990,1745328641249,-500.0,0.00021917,2]
[358639991,1745328641259,-500.0,0.00021917,2]
[358639992,1745328641269,-500.0,0.00021917,2]
[358639993,1745328641278,-500.0,0.00021917,2]
[358639994,1745328641288,-1611.1,0.00021917,2]
[358639995,1745328641469,-500.0,0.00021917,2]
[358639996,1745328641479,-500.0,0.00021917,2]
[358639997,1745328641492,-500.0,0.00021917,2]
[358639998,1745328641502,-500.0,0.00021917,2]
[358639999,1745328641512,-500.0,0.00021917,2]
[358640000,1745328641522,-500.0,0.00021917,2]
[358640001,1745328641532,-500.0,0.00021917,2]
[358640002,1745328641543,-500.0,0.00021917,2]
[358640003,1745328641553,-500.0,0.00021917,2]
[358640004,1745328641563,-500.0,0.00021917,2]
[358640005,1745328641573,-665.66,0.00021917,2]
[358640006,1745328641583,-500.0,0.00021917,2]
[358640007,1745328641593,-533.74,0.00021917,2]
[358640008,1745328641603,-500.0,0.00021917,2]
[358640009,1745328641613,-5471.47,0.00021917,2]
[358640010,1745328641623,-500.0,0.00021917,2]
[358640011,1745328641634,-1926.75,0.00021917,2]
[358640012,1745328641643,-500.0,0.00021917,2]
[358640013,1745328641653,-500.0,0.00021917,2]
[358640014,1745328641664,-2807.88,0.00021917,2]
[358640015,1745328641674,-702.34,0.00021917,2]
[358640016,1745328641686,-500.0,0.00021917,2]
[358640017,1745328641697,-571.93,0.00021917,2]
[358640018,1745328641706,-500.0,0.00021917,2]
[358640019,1745328641716,-500.0,0.00021917,2]
[358640020,1745328641727,-500.0,0.00021917,2]
[358640021,1745328641738,-1514.56,0.00021917,2]
[358640022,1745328641748,-500.0,0.00021917,2]
[358640023,1745328641758,-534.01,0.00021917,2]
[358640024,1745328641768,-500.0,0.00021917,2]
[358640025,1745328641778,-500.0,0.00021917,2]
[358640026,1745328641788,-513.56409681,0.00021917,2]
[358640027,1745328641798,-532.79272639,0.00021917,2]
[358640028,1745328641808,-500.0,0.00021917,2]
[358640029,1745328641819,-457.02890223,0.00021917,2]
[358640030,1745328641831,-500.0,0.00021917,2]
[358640031,1745328641840,-500.0,0.00021917,2]
[358640032,1745328641851,-500.0,0.00021917,2]
[358640033,1745328641861,-494.82033752,0.00021917,2]
[358640034,1745328641871,-500.0,0.00021917,2]
[358640035,1745328641882,-860.41,0.00021917,2]
[358640036,1745328641893,-500.0,0.00021917,2]
[358640037,1745328641902,-500.0,0.00021917,2]
[358640038,1745328641912,-500.0,0.00021917,2]
[358640039,1745328641922,-500.0,0.00021917,2]
[358640040,1745328641931,-502.89055827,0.00021917,2]
[358640041,1745328641942,-500.0,0.00021917,2]
[358640042,1745328641952,-500.0,0.00021917,2]
[358640043,1745328641963,-3939.43,0.00021917,2]
[358640044,1745328641972,-500.0,0.00021917,2]
[358640045,1745328641982,-500.0,0.00021917,2]
[358640046,1745328641993,-500.0,0.00021917,2]
[358640047,1745328642003,-500.0,0.00021917,2]
[358640048,1745328642013,-510.29906048,0.00021917,2]
[358640049,1745328642023,-500.0,0.00021917,2]
[358640050,1745328642032,-504.3851446,0.00021917,2]
[358640051,1745328642043,-271.46329901,0.00021917,2]
[358640052,1745328642052,-500.0,0.00021917,2]
[358640053,1745328642062,-514.96835971,0.00021917,2]
[358640054,1745328642074,-1016.75,0.00021917,2]
[358640055,1745328642084,-500.0,0.00021917,2]
[358640056,1745328642094,-500.0,0.00021917,2]
[358640057,1745328642104,-500.0,0.00021917,2]
[358640058,1745328642113,-505.82770341,0.00021917,2]
[358640059,1745328642123,-500.0,0.00021917,2]
[358640060,1745328642132,-500.0,0.00021917,2]
[358640061,1745328642143,-500.0,0.00021917,2]
[358640062,1745328642153,-506.67902245,0.00021917,2]
[358640063,1745328642163,-500.0,0.00021917,2]
[358640064,1745328642173,-500.0,0.00021917,2]
[358640065,1745328642183,-500.0,0.00021917,2]
[358640066,1745328642193,-500.0,0.00021917,2]
[358640067,1745328642203,-639.24,0.00021917,2]
[358640068,1745328642214,-502.87730235,0.00021917,2]
[358640069,1745328642224,-511.76396241,0.00021917,2]
[358640070,1745328642235,-500.0,0.00021917,2]
[358640071,1745328642245,-504.83227008,0.00021917,2]
[358640072,1745328642256,-516.49854394,0.00021917,2]
[358640073,1745328642265,-500.0,0.00021917,2]
[358640074,1745328642275,-503.43116122,0.00021917,2]
[358640075,1745328642284,-500.0,0.00021917,2]
[358640076,1745328642293,-166.0,0.00021918,2]
[358640077,1745328642303,-225.394442,0.00021918,2]
[358640078,1745328642314,-260.12531393,0.00021918,2]
[358640079,1745328642325,-151.0,0.00021918,2]
[358640080,1745328642335,-500.0,0.00021918,2]
[358640081,1745328642345,-500.0,0.00021918,2]
[358640082,1745328642355,-151.0,0.00021918,2]
[358640083,1745328642364,-151.0,0.00021918,2]
[358640084,1745328642375,-151.0,0.00021918,2]
[358640085,1745328642385,-151.0,0.00021918,2]
[358640086,1745328642395,-151.0,0.00021918,2]
[358640087,1745328642405,-500.0,0.00021918,2]
[358640088,1745328642414,-151.0,0.00021918,2]
[358640089,1745328642424,-362.19133297,0.00021973,2]
[358640090,1745328642434,-500.0,0.00021973,2]
[358640091,1745328642445,-500.0,0.00021973,2]
[358640092,1745328642455,-500.0,0.00021973,2]
[358640093,1745328642468,-500.0,0.00021973,2]
[358640094,1745328642477,-500.0,0.00021973,2]
[358640095,1745328642487,-500.0,0.00021973,2]
[358640096,1745328642498,-300.0,0.00021973,2]
[358640097,1745328642507,-500.0,0.0002199,2]
[358640098,1745328642517,-500.0,0.00022,2]
[358640099,1745328642527,-596.10118734,0.00022023,2]
[358640101,1745328642537,-265.40714463,0.00022173,2]
[358640102,1745328642547,-500.0,0.00022173,2]
[358640103,1745328642557,-500.0,0.00022191,2]
[358640104,1745328642566,-500.0,0.00022191,2]
[358640105,1745328642577,-500.0,0.00022191,2]
[358640106,1745328642587,-682.39,0.00022191,2]
[358640107,1745328642597,-560.52,0.00022191,2]
[358640108,1745328642608,-500.0,0.00022191,2]
[358640109,1745328642618,-500.0,0.00022191,2]
[358640110,1745328642628,-500.0,0.00022191,2]
[358640111,1745328642638,-500.0,0.00022191,2]
[358640112,1745328642648,-500.0,0.00022191,2]